[Event "Titled Tuesday Blitz December 27 Early 2022"]
[White "Kazancev, Valerij M"]
[Black "Aghasiyev, Kamal"]
[WhiteFideId "4179609"]
[BlackFideId "13402854"]
[WhiteElo "2313"]
[BlackElo "2441"]
[Result "0-1"]
[Round "05"]
[TimeControl "180+2"]
[Date "2022.12.27"]
[WhiteClock "0:00:07"]
[BlackClock "0:00:32"]

1. c4 {[%clk 0:02:57]}  e6 {[%clk 0:02:58]} 2. Nf3 {[%clk 0:02:57]}  d5 {[%clk 0:02:57]} 3. g3 {[%clk 0:02:58]}  Nf6 {[%clk 0:02:57]} 4. Bg2 {[%clk 0:02:59]}  dxc4 {[%clk 0:02:56]} 5. O-O {[%clk 0:03:00]}  Be7 {[%clk 0:02:53]} 6. Na3 {[%clk 0:02:55]}  Bxa3 {[%clk 0:02:52]} 7. bxa3 {[%clk 0:02:56]}  O-O {[%clk 0:02:52]} 8. Qc2 {[%clk 0:02:51]}  Nc6 {[%clk 0:02:42]} 9. Qxc4 {[%clk 0:02:48]}  Qd5 {[%clk 0:02:41]} 10. Qc2 {[%clk 0:02:46]}  Qh5 {[%clk 0:02:41]} 11. Rb1 {[%clk 0:02:44]}  e5 {[%clk 0:02:40]} 12. d3 {[%clk 0:02:44]}  Rb8 {[%clk 0:02:37]} 13. h4 {[%clk 0:01:54]}  Bg4 {[%clk 0:02:33]} 14. Be3 {[%clk 0:01:45]}  Nd5 {[%clk 0:02:31]} 15. Bc5 {[%clk 0:01:40]}  Rfe8 {[%clk 0:02:31]} 16. Qc4 {[%clk 0:01:40]}  Nb6 {[%clk 0:02:23]} 17. Qc1 {[%clk 0:01:20]}  e4 {[%clk 0:02:14]} 18. dxe4 {[%clk 0:01:11]}  Rxe4 {[%clk 0:02:14]} 19. Be3 {[%clk 0:00:56]}  Rbe8 {[%clk 0:02:10]} 20. Ng5 {[%clk 0:00:46]}  Rc4 {[%clk 0:02:06]} 21. Bxc6 {[%clk 0:00:33]}  Rxc6 {[%clk 0:01:53]} 22. Qd2 {[%clk 0:00:26]}  h6 {[%clk 0:01:50]} 23. Nf3 {[%clk 0:00:19]}  Bxf3 {[%clk 0:01:42]} 24. exf3 {[%clk 0:00:20]}  Qxf3 {[%clk 0:01:42]} 25. Rfe1 {[%clk 0:00:21]}  Rce6 {[%clk 0:01:36]} 26. Bxb6 {[%clk 0:00:20]}  Rxe1+ {[%clk 0:01:29]} 27. Rxe1 {[%clk 0:00:21]}  Rxe1+ {[%clk 0:01:29]} 28. Qxe1 {[%clk 0:00:21]}  axb6 {[%clk 0:01:29]} 29. Qe8+ {[%clk 0:00:21]}  Kh7 {[%clk 0:01:29]} 30. Qd7 {[%clk 0:00:20]}  c5 {[%clk 0:01:22]} 31. a4 {[%clk 0:00:16]}  c4 {[%clk 0:01:18]} 32. Qc7 {[%clk 0:00:16]}  Qd5 {[%clk 0:01:12]} 33. Kh2 {[%clk 0:00:13]}  f6 {[%clk 0:01:06]} 34. Qxb6 {[%clk 0:00:12]}  c3 {[%clk 0:01:03]} 35. Qb1+ {[%clk 0:00:12]}  Kh8 {[%clk 0:01:01]} 36. h5 {[%clk 0:00:11]}  Qd2 {[%clk 0:00:57]} 37. Qg6 {[%clk 0:00:10]}  Qxf2+ {[%clk 0:00:55]} 38. Kh3 {[%clk 0:00:11]}  Qe2 {[%clk 0:00:53]} 39. Qf5 {[%clk 0:00:08]}  Qe8 {[%clk 0:00:49]} 40. Qc5 {[%clk 0:00:08]}  Qe6+ {[%clk 0:00:46]} 41. Kh4 {[%clk 0:00:08]}  Qe4+ {[%clk 0:00:44]} 42. Kh3 {[%clk 0:00:08]}  c2 {[%clk 0:00:44]} 43. Qc8+ {[%clk 0:00:08]}  Kh7 {[%clk 0:00:44]} 44. Qc3 {[%clk 0:00:07]}  Qh1+ {[%clk 0:00:32]} 45. Kg4 {[%clk 0:00:07]}  Qd1+ {[%clk 0:00:32]} 0-1


[Site "https://www.chess.com"]

[Event "Titled Tuesday Blitz December 27 Early 2022"]
[White "Kilic, Eray"]
[Black "Tactrics"]
[WhiteFideId "44517173"]
[WhiteElo "2414"]
[BlackElo "2976"]
[Result "0-1"]
[Round "05"]
[TimeControl "180+2"]
[Date "2022.12.27"]
[WhiteClock "0:00:05"]
[BlackClock "0:01:05"]

1. e4 {[%clk 0:03:00]}  e6 {[%clk 0:03:00]} 2. d4 {[%clk 0:03:00]}  d5 {[%clk 0:03:01]} 3. Nc3 {[%clk 0:02:59]}  Nc6 {[%clk 0:03:00]} 4. Nf3 {[%clk 0:02:57]}  Nf6 {[%clk 0:03:00]} 5. Bd3 {[%clk 0:02:45]}  Bb4 {[%clk 0:03:00]} 6. e5 {[%clk 0:02:45]}  Ne4 {[%clk 0:03:00]} 7. Bd2 {[%clk 0:02:43]}  Nxd2 {[%clk 0:03:00]} 8. Qxd2 {[%clk 0:02:44]}  Bd7 {[%clk 0:03:01]} 9. O-O {[%clk 0:02:44]}  Ba5 {[%clk 0:03:00]} 10. Qf4 {[%clk 0:02:41]}  Bb6 {[%clk 0:02:56]} 11. Qg4 {[%clk 0:02:37]}  g6 {[%clk 0:02:40]} 12. a3 {[%clk 0:02:36]}  f6 {[%clk 0:02:37]} 13. Na4 {[%clk 0:01:15]}  fxe5 {[%clk 0:02:25]} 14. Nxb6 {[%clk 0:01:15]}  axb6 {[%clk 0:02:26]} 15. dxe5 {[%clk 0:01:14]}  Qe7 {[%clk 0:02:23]} 16. b4 {[%clk 0:01:10]}  Qg7 {[%clk 0:02:20]} 17. Rfe1 {[%clk 0:01:09]}  O-O {[%clk 0:02:15]} 18. Bb5 {[%clk 0:01:04]}  Rf5 {[%clk 0:02:05]} 19. Bxc6 {[%clk 0:01:02]}  bxc6 {[%clk 0:02:05]} 20. Re3 {[%clk 0:01:00]}  c5 {[%clk 0:02:04]} 21. bxc5 {[%clk 0:00:58]}  bxc5 {[%clk 0:02:05]} 22. Rb3 {[%clk 0:00:58]}  Bc6 {[%clk 0:02:01]} 23. Re1 {[%clk 0:00:52]}  d4 {[%clk 0:01:58]} 24. Qg3 {[%clk 0:00:49]}  Bd5 {[%clk 0:01:46]} 25. Nh4 {[%clk 0:00:40]}  Rh5 {[%clk 0:01:29]} 26. Rbb1 {[%clk 0:00:35]}  Qe7 {[%clk 0:01:28]} 27. Nf3 {[%clk 0:00:35]}  Rxa3 {[%clk 0:01:24]} 28. Rb8+ {[%clk 0:00:35]}  Kg7 {[%clk 0:01:24]} 29. Kh1 {[%clk 0:00:31]}  Rf5 {[%clk 0:01:21]} 30. c4 {[%clk 0:00:12]}  Raxf3 {[%clk 0:01:17]} 31. gxf3 {[%clk 0:00:12]}  Bxf3+ {[%clk 0:01:15]} 32. Kg1 {[%clk 0:00:11]}  Rg5 {[%clk 0:01:16]} 33. Rc8 {[%clk 0:00:07]}  Rxg3+ {[%clk 0:01:14]} 34. hxg3 {[%clk 0:00:08]}  Kh6 {[%clk 0:01:07]} 35. Rb1 {[%clk 0:00:07]}  Qg5 {[%clk 0:01:06]} 36. Rxc7 {[%clk 0:00:05]}  Qh5 {[%clk 0:01:05]} 0-1


[Site "https://www.chess.com"]

[Event "Titled Tuesday Blitz December 27 Early 2022"]
[White "Kleiman, Jake"]
[Black "Gorodetzky, David"]
[WhiteFideId "2020041"]
[BlackFideId "2813416"]
[WhiteElo "2399"]
[BlackElo "2485"]
[Result "0-1"]
[Round "05"]
[TimeControl "180+2"]
[Date "2022.12.27"]
[WhiteClock "0:00:01"]
[BlackClock "0:00:25"]

1. e4 {[%clk 0:03:00]}  e6 {[%clk 0:02:53]} 2. d3 {[%clk 0:03:00]}  d5 {[%clk 0:02:54]} 3. Nd2 {[%clk 0:02:59]}  c5 {[%clk 0:02:52]} 4. Ngf3 {[%clk 0:03:00]}  Nc6 {[%clk 0:02:52]} 5. g3 {[%clk 0:03:00]}  Nf6 {[%clk 0:02:52]} 6. Bg2 {[%clk 0:03:01]}  Be7 {[%clk 0:02:52]} 7. O-O {[%clk 0:03:02]}  O-O {[%clk 0:02:53]} 8. e5 {[%clk 0:03:02]}  Nd7 {[%clk 0:02:52]} 9. Re1 {[%clk 0:03:03]}  b5 {[%clk 0:02:52]} 10. Nf1 {[%clk 0:03:04]}  b4 {[%clk 0:02:52]} 11. h4 {[%clk 0:03:04]}  a5 {[%clk 0:02:52]} 12. Bf4 {[%clk 0:03:05]}  Re8 {[%clk 0:02:52]} 13. h5 {[%clk 0:03:01]}  h6 {[%clk 0:02:53]} 14. Qd2 {[%clk 0:02:54]}  Bf8 {[%clk 0:02:50]} 15. g4 {[%clk 0:02:53]}  f6 {[%clk 0:02:50]} 16. Ng3 {[%clk 0:02:39]}  fxe5 {[%clk 0:02:48]} 17. Nxe5 {[%clk 0:02:40]}  Ndxe5 {[%clk 0:02:48]} 18. Bxe5 {[%clk 0:02:41]}  Nxe5 {[%clk 0:02:48]} 19. Rxe5 {[%clk 0:02:41]}  Bd6 {[%clk 0:02:48]} 20. Rxd5 {[%clk 0:02:32]}  exd5 {[%clk 0:02:40]} 21. Bxd5+ {[%clk 0:02:32]}  Be6 {[%clk 0:02:40]} 22. Bxa8 {[%clk 0:02:28]}  Qxa8 {[%clk 0:02:40]} 23. Ne4 {[%clk 0:02:26]}  Be5 {[%clk 0:02:29]} 24. g5 {[%clk 0:02:05]}  Bf5 {[%clk 0:02:04]} 25. Re1 {[%clk 0:01:57]}  Bxb2 {[%clk 0:01:59]} 26. g6 {[%clk 0:01:07]}  Bxe4 {[%clk 0:01:21]} 27. Rxe4 {[%clk 0:01:07]}  Rxe4 {[%clk 0:01:18]} 28. dxe4 {[%clk 0:01:07]}  Bf6 {[%clk 0:01:17]} 29. Qd7 {[%clk 0:00:52]}  Bd4 {[%clk 0:00:47]} 30. Qf7+ {[%clk 0:00:44]}  Kh8 {[%clk 0:00:47]} 31. Kf1 {[%clk 0:00:39]}  Qc8 {[%clk 0:00:42]} 32. Ke2 {[%clk 0:00:20]}  c4 {[%clk 0:00:41]} 33. Kd1 {[%clk 0:00:12]}  a4 {[%clk 0:00:40]} 34. Ke2 {[%clk 0:00:09]}  b3 {[%clk 0:00:39]} 35. axb3 {[%clk 0:00:09]}  a3 {[%clk 0:00:34]} 36. Qd5 {[%clk 0:00:04]}  Bc3 {[%clk 0:00:26]} 37. bxc4 {[%clk 0:00:01]}  a2 {[%clk 0:00:25]} 0-1


[Site "https://www.chess.com"]

[Event "Titled Tuesday Blitz December 27 Early 2022"]
[White "Koutlas, Nikolaos"]
[Black "Lorenzo De La Riva, Lazaro"]
[WhiteFideId "25827138"]
[BlackFideId "2268809"]
[WhiteElo "2341"]
[BlackElo "2404"]
[Result "1-0"]
[Round "05"]
[TimeControl "180+2"]
[Date "2022.12.27"]
[WhiteClock "0:01:39"]
[BlackClock "0:00:58"]

1. a3 {[%clk 0:03:00]}  g6 {[%clk 0:02:51]} 2. e4 {[%clk 0:02:57]}  Bg7 {[%clk 0:02:49]} 3. Nf3 {[%clk 0:02:57]}  c5 {[%clk 0:02:44]} 4. Nc3 {[%clk 0:02:54]}  Nc6 {[%clk 0:02:40]} 5. Bc4 {[%clk 0:02:52]}  e6 {[%clk 0:02:36]} 6. O-O {[%clk 0:02:50]}  a6 {[%clk 0:02:29]} 7. Re1 {[%clk 0:02:44]}  d6 {[%clk 0:02:27]} 8. b4 {[%clk 0:02:32]}  b5 {[%clk 0:02:26]} 9. Bd5 {[%clk 0:02:22]}  exd5 {[%clk 0:02:01]} 10. exd5+ {[%clk 0:02:23]}  Ne5 {[%clk 0:01:55]} 11. bxc5 {[%clk 0:02:21]}  dxc5 {[%clk 0:01:56]} 12. Nxe5 {[%clk 0:02:19]}  Kf8 {[%clk 0:01:38]} 13. d4 {[%clk 0:01:55]}  c4 {[%clk 0:01:22]} 14. Qf3 {[%clk 0:01:41]}  Bb7 {[%clk 0:00:58]} 15. Qxf7# {[%clk 0:01:39]} 1-0


[Site "https://www.chess.com"]

[Event "Titled Tuesday Blitz December 27 Early 2022"]
[White "Liyanage, Ranindu Dilshan"]
[Black "Chigaev, Maksim"]
[WhiteFideId "9915834"]
[BlackFideId "4108116"]
[WhiteElo "2342"]
[BlackElo "2628"]
[Result "0-1"]
[Round "05"]
[TimeControl "180+2"]
[Date "2022.12.27"]
[WhiteClock "0:00:24"]
[BlackClock "0:00:16"]

1. e4 {[%clk 0:02:53]}  c5 {[%clk 0:03:00]} 2. Nc3 {[%clk 0:02:52]}  d6 {[%clk 0:02:59]} 3. f4 {[%clk 0:02:51]}  Nc6 {[%clk 0:02:58]} 4. Nf3 {[%clk 0:02:50]}  Nf6 {[%clk 0:02:58]} 5. Bb5 {[%clk 0:02:39]}  Bd7 {[%clk 0:02:57]} 6. Bc4 {[%clk 0:02:35]}  e6 {[%clk 0:02:54]} 7. d3 {[%clk 0:02:33]}  a6 {[%clk 0:02:39]} 8. a4 {[%clk 0:02:31]}  Be7 {[%clk 0:02:38]} 9. O-O {[%clk 0:02:28]}  O-O {[%clk 0:02:38]} 10. h3 {[%clk 0:02:14]}  Ne8 {[%clk 0:02:15]} 11. g4 {[%clk 0:02:11]}  Nc7 {[%clk 0:02:15]} 12. f5 {[%clk 0:01:59]}  Nb4 {[%clk 0:02:15]} 13. Bf4 {[%clk 0:01:53]}  d5 {[%clk 0:02:06]} 14. Ba2 {[%clk 0:01:48]}  Nxa2 {[%clk 0:01:56]} 15. Rxa2 {[%clk 0:01:42]}  Bc6 {[%clk 0:01:57]} 16. Qe2 {[%clk 0:01:35]}  b5 {[%clk 0:01:38]} 17. Raa1 {[%clk 0:01:33]}  b4 {[%clk 0:01:36]} 18. Nd1 {[%clk 0:01:30]}  c4 {[%clk 0:01:30]} 19. Nf2 {[%clk 0:01:29]}  b3 {[%clk 0:01:27]} 20. cxb3 {[%clk 0:01:13]}  cxd3 {[%clk 0:01:11]} 21. Qxd3 {[%clk 0:01:13]}  dxe4 {[%clk 0:00:57]} 22. Qxd8 {[%clk 0:01:13]}  Rfxd8 {[%clk 0:00:56]} 23. Bxc7 {[%clk 0:01:12]}  exf3 {[%clk 0:00:57]} 24. Bxd8 {[%clk 0:01:10]}  Rxd8 {[%clk 0:00:57]} 25. Rfd1 {[%clk 0:01:10]}  Rb8 {[%clk 0:00:54]} 26. Rac1 {[%clk 0:01:09]}  Bd5 {[%clk 0:00:54]} 27. Rd3 {[%clk 0:01:06]}  h6 {[%clk 0:00:49]} 28. Rc7 {[%clk 0:00:42]}  Bf6 {[%clk 0:00:39]} 29. fxe6 {[%clk 0:00:32]}  fxe6 {[%clk 0:00:40]} 30. Nd1 {[%clk 0:00:30]}  Be5 {[%clk 0:00:17]} 31. Nf2 {[%clk 0:00:24]}  Bxc7 {[%clk 0:00:16]} 0-1


[Site "https://www.chess.com"]

[Event "Titled Tuesday Blitz December 27 Early 2022"]
[White "Mahdavi, Reza"]
[Black "Nguyen Hong Nhung"]
[WhiteFideId "12595926"]
[BlackFideId "12412201"]
[WhiteElo "2339"]
[BlackElo "2003"]
[Result "1-0"]
[Round "05"]
[TimeControl "180+2"]
[Date "2022.12.27"]
[WhiteClock "0:00:11"]
[BlackClock "0:00:06"]

1. d4 {[%clk 0:02:57]}  f5 {[%clk 0:02:59]} 2. Nf3 {[%clk 0:02:54]}  Nf6 {[%clk 0:02:59]} 3. g3 {[%clk 0:02:54]}  g6 {[%clk 0:03:00]} 4. Bg2 {[%clk 0:02:54]}  Bg7 {[%clk 0:03:00]} 5. c4 {[%clk 0:02:43]}  O-O {[%clk 0:02:56]} 6. Nc3 {[%clk 0:02:40]}  d6 {[%clk 0:02:56]} 7. O-O {[%clk 0:02:40]}  Qe8 {[%clk 0:02:52]} 8. b3 {[%clk 0:02:35]}  e5 {[%clk 0:02:48]} 9. dxe5 {[%clk 0:02:34]}  dxe5 {[%clk 0:02:49]} 10. e4 {[%clk 0:02:35]}  fxe4 {[%clk 0:02:45]} 11. Ng5 {[%clk 0:02:14]}  Bg4 {[%clk 0:02:43]} 12. Qc2 {[%clk 0:01:53]}  Nc6 {[%clk 0:02:41]} 13. Ngxe4 {[%clk 0:01:51]}  Nd4 {[%clk 0:02:26]} 14. Qd3 {[%clk 0:01:50]}  Rd8 {[%clk 0:02:19]} 15. Qb1 {[%clk 0:01:34]}  Bf5 {[%clk 0:02:05]} 16. Be3 {[%clk 0:01:33]}  Nxe4 {[%clk 0:02:01]} 17. Nxe4 {[%clk 0:01:14]}  c6 {[%clk 0:01:58]} 18. Kh1 {[%clk 0:01:10]}  Kh8 {[%clk 0:01:40]} 19. Qb2 {[%clk 0:01:08]}  Qd7 {[%clk 0:01:24]} 20. Rad1 {[%clk 0:01:01]}  Bh3 {[%clk 0:01:18]} 21. f3 {[%clk 0:00:57]}  Bxg2+ {[%clk 0:01:13]} 22. Kxg2 {[%clk 0:00:58]}  Qf5 {[%clk 0:01:10]} 23. Bxd4 {[%clk 0:00:35]}  exd4 {[%clk 0:01:11]} 24. Qe2 {[%clk 0:00:33]}  Rfe8 {[%clk 0:01:08]} 25. Qd3 {[%clk 0:00:33]}  Qa5 {[%clk 0:01:07]} 26. Rd2 {[%clk 0:00:32]}  Bh6 {[%clk 0:01:02]} 27. Re2 {[%clk 0:00:27]}  c5 {[%clk 0:00:58]} 28. f4 {[%clk 0:00:23]}  Bg7 {[%clk 0:00:53]} 29. Rfe1 {[%clk 0:00:22]}  Re7 {[%clk 0:00:43]} 30. Ng5 {[%clk 0:00:20]}  Rxe2+ {[%clk 0:00:36]} 31. Qxe2 {[%clk 0:00:21]}  Rf8 {[%clk 0:00:25]} 32. Qe6 {[%clk 0:00:21]}  Qc7 {[%clk 0:00:25]} 33. Qd5 {[%clk 0:00:20]}  Qc6 {[%clk 0:00:12]} 34. Qxc6 {[%clk 0:00:13]}  bxc6 {[%clk 0:00:13]} 35. Kf3 {[%clk 0:00:13]}  Kg8 {[%clk 0:00:12]} 36. Ne6 {[%clk 0:00:08]}  Re8 {[%clk 0:00:11]} 37. Re4 {[%clk 0:00:08]}  Bf8 {[%clk 0:00:11]} 38. Nxc5 {[%clk 0:00:07]}  Rxe4 {[%clk 0:00:04]} 39. Nxe4 {[%clk 0:00:07]}  Kf7 {[%clk 0:00:05]} 40. Nf2 {[%clk 0:00:08]}  Ke6 {[%clk 0:00:05]} 41. Ke4 {[%clk 0:00:08]}  c5 {[%clk 0:00:05]} 42. Nd3 {[%clk 0:00:09]}  Kd6 {[%clk 0:00:05]} 43. g4 {[%clk 0:00:10]}  Bg7 {[%clk 0:00:05]} 44. f5 {[%clk 0:00:10]}  gxf5+ {[%clk 0:00:05]} 45. Kxf5 {[%clk 0:00:11]}  Bf6 {[%clk 0:00:06]} 46. Kxf6 {[%clk 0:00:11]} 1-0


[Site "https://www.chess.com"]

[Event "Titled Tuesday Blitz December 27 Early 2022"]
[White "Marjanovic, Annamaria"]
[Black "Mitrovic, Darko R"]
[WhiteFideId "750930"]
[BlackFideId "927023"]
[WhiteElo "2273"]
[BlackElo "2220"]
[Result "1-0"]
[Round "05"]
[TimeControl "180+2"]
[Date "2022.12.27"]
[WhiteClock "0:02:28"]
[BlackClock "0:01:07"]

1. c4 {[%clk 0:03:00]}  e5 {[%clk 0:02:25]} 2. g3 {[%clk 0:03:00]}  Nc6 {[%clk 0:02:23]} 3. Bg2 {[%clk 0:03:01]}  g6 {[%clk 0:02:24]} 4. Nc3 {[%clk 0:03:01]}  Bg7 {[%clk 0:02:24]} 5. d3 {[%clk 0:03:02]}  f5 {[%clk 0:02:23]} 6. Nf3 {[%clk 0:02:59]}  Nf6 {[%clk 0:02:20]} 7. O-O {[%clk 0:03:00]}  O-O {[%clk 0:02:20]} 8. Rb1 {[%clk 0:03:00]}  d6 {[%clk 0:02:20]} 9. b4 {[%clk 0:02:59]}  h6 {[%clk 0:02:16]} 10. b5 {[%clk 0:02:57]}  Ne7 {[%clk 0:02:15]} 11. Qb3 {[%clk 0:02:54]}  Be6 {[%clk 0:01:28]} 12. Bb2 {[%clk 0:02:38]}  c6 {[%clk 0:01:20]} 13. bxc6 {[%clk 0:02:33]}  bxc6 {[%clk 0:01:18]} 14. Qa4 {[%clk 0:02:32]}  Qd7 {[%clk 0:01:12]} 15. Ba3 {[%clk 0:02:28]}  Rab8 {[%clk 0:01:07]} 1-0


[Site "https://www.chess.com"]

[Event "Titled Tuesday Blitz December 27 Early 2022"]
[White "Mathieu, Phileas"]
[Black "Costachi, Mihnea"]
[WhiteFideId "36048410"]
[BlackFideId "1217518"]
[WhiteElo "2374"]
[BlackElo "2476"]
[Result "1-0"]
[Round "05"]
[TimeControl "180+2"]
[Date "2022.12.27"]
[WhiteClock "0:01:02"]
[BlackClock "0:00:21"]

1. c4 {[%clk 0:02:55]}  Nf6 {[%clk 0:02:58]} 2. Nc3 {[%clk 0:02:55]}  g6 {[%clk 0:02:57]} 3. g3 {[%clk 0:02:55]}  Bg7 {[%clk 0:02:57]} 4. Bg2 {[%clk 0:02:56]}  O-O {[%clk 0:02:57]} 5. e3 {[%clk 0:02:57]}  d6 {[%clk 0:02:57]} 6. Nge2 {[%clk 0:02:56]}  e5 {[%clk 0:02:54]} 7. b3 {[%clk 0:02:56]}  Nc6 {[%clk 0:02:53]} 8. Bb2 {[%clk 0:02:57]}  Re8 {[%clk 0:02:41]} 9. O-O {[%clk 0:02:55]}  e4 {[%clk 0:02:23]} 10. d3 {[%clk 0:02:41]}  exd3 {[%clk 0:02:21]} 11. Qxd3 {[%clk 0:02:42]}  Bf5 {[%clk 0:02:21]} 12. Qd2 {[%clk 0:02:36]}  Qd7 {[%clk 0:02:20]} 13. Nf4 {[%clk 0:02:31]}  Rab8 {[%clk 0:02:17]} 14. Nfd5 {[%clk 0:02:31]}  Bh3 {[%clk 0:02:11]} 15. Nxf6+ {[%clk 0:02:30]}  Bxf6 {[%clk 0:02:11]} 16. Nd5 {[%clk 0:02:30]}  Bd8 {[%clk 0:01:57]} 17. Qc3 {[%clk 0:02:20]}  Ne5 {[%clk 0:01:45]} 18. Bxh3 {[%clk 0:02:10]}  Qxh3 {[%clk 0:01:33]} 19. f4 {[%clk 0:02:09]}  c6 {[%clk 0:01:20]} 20. fxe5 {[%clk 0:01:47]}  dxe5 {[%clk 0:00:52]} 21. Nf6+ {[%clk 0:01:39]}  Bxf6 {[%clk 0:00:51]} 22. Rxf6 {[%clk 0:01:40]}  h5 {[%clk 0:00:48]} 23. Raf1 {[%clk 0:01:36]}  h4 {[%clk 0:00:48]} 24. e4 {[%clk 0:01:34]}  Re7 {[%clk 0:00:42]} 25. Qf3 {[%clk 0:01:25]}  hxg3 {[%clk 0:00:38]} 26. Qxg3 {[%clk 0:01:19]}  Qh5 {[%clk 0:00:39]} 27. R6f5 {[%clk 0:01:05]}  Qe2 {[%clk 0:00:21]} 28. Rxe5 {[%clk 0:01:04]}  Rbe8 {[%clk 0:00:22]} 29. Rxe7 {[%clk 0:01:02]}  Rxe7 {[%clk 0:00:22]} 30. Qb8+ {[%clk 0:01:02]}  Re8 {[%clk 0:00:20]} 31. Qxe8+ {[%clk 0:01:02]}  Kh7 {[%clk 0:00:21]} 32. Qh8# {[%clk 0:01:02]} 1-0


[Site "https://www.chess.com"]

[Event "Titled Tuesday Blitz December 27 Early 2022"]
[White "Melikhov, Evgeny V."]
[Black "Prieto Aranguren, Alain"]
[WhiteFideId "4122046"]
[BlackFideId "2268906"]
[WhiteElo "2269"]
[BlackElo "2258"]
[Result "0-1"]
[Round "05"]
[TimeControl "180+2"]
[Date "2022.12.27"]
[WhiteClock "0:00:08"]
[BlackClock "0:00:04"]

1. d4 {[%clk 0:03:00]}  e6 {[%clk 0:02:49]} 2. c4 {[%clk 0:03:00]}  Nf6 {[%clk 0:02:47]} 3. Nc3 {[%clk 0:02:59]}  d5 {[%clk 0:02:45]} 4. cxd5 {[%clk 0:02:59]}  exd5 {[%clk 0:02:40]} 5. Bg5 {[%clk 0:02:59]}  Be7 {[%clk 0:02:39]} 6. e3 {[%clk 0:02:58]}  O-O {[%clk 0:02:39]} 7. Bd3 {[%clk 0:02:58]}  c6 {[%clk 0:02:39]} 8. Qc2 {[%clk 0:02:57]}  h6 {[%clk 0:02:39]} 9. Bh4 {[%clk 0:02:57]}  Re8 {[%clk 0:02:39]} 10. Nf3 {[%clk 0:02:51]}  Ne4 {[%clk 0:02:34]} 11. Bxe4 {[%clk 0:02:46]}  Bxh4 {[%clk 0:02:33]} 12. Bh7+ {[%clk 0:02:22]}  Kf8 {[%clk 0:02:29]} 13. O-O {[%clk 0:02:10]}  Bf6 {[%clk 0:02:27]} 14. Bd3 {[%clk 0:02:07]}  Bg4 {[%clk 0:02:22]} 15. Nd2 {[%clk 0:02:06]}  Nd7 {[%clk 0:02:17]} 16. b4 {[%clk 0:01:58]}  b5 {[%clk 0:02:12]} 17. a4 {[%clk 0:01:58]}  a6 {[%clk 0:02:07]} 18. a5 {[%clk 0:01:58]}  Kg8 {[%clk 0:01:55]} 19. Nb3 {[%clk 0:01:57]}  Re6 {[%clk 0:01:46]} 20. h3 {[%clk 0:01:31]}  Bh5 {[%clk 0:01:44]} 21. g4 {[%clk 0:01:30]}  Bg6 {[%clk 0:01:43]} 22. Bxg6 {[%clk 0:01:30]}  fxg6 {[%clk 0:01:43]} 23. Qxg6 {[%clk 0:01:29]}  Qe7 {[%clk 0:01:35]} 24. Qf5 {[%clk 0:01:20]}  Rf8 {[%clk 0:01:28]} 25. Qd3 {[%clk 0:01:10]}  Bg5 {[%clk 0:01:20]} 26. Nc5 {[%clk 0:00:59]}  Nxc5 {[%clk 0:01:04]} 27. bxc5 {[%clk 0:00:59]}  Rf3 {[%clk 0:01:02]} 28. Kg2 {[%clk 0:00:56]}  Qf7 {[%clk 0:00:50]} 29. Rae1 {[%clk 0:00:51]}  Ref6 {[%clk 0:00:46]} 30. Nd1 {[%clk 0:00:47]}  h5 {[%clk 0:00:46]} 31. Qe2 {[%clk 0:00:41]}  hxg4 {[%clk 0:00:44]} 32. hxg4 {[%clk 0:00:41]}  Qg6 {[%clk 0:00:33]} 33. e4 {[%clk 0:00:39]}  Bh4 {[%clk 0:00:16]} 34. Qxf3 {[%clk 0:00:39]}  Rxf3 {[%clk 0:00:15]} 35. Kxf3 {[%clk 0:00:39]}  dxe4+ {[%clk 0:00:15]} 36. Rxe4 {[%clk 0:00:39]}  Qf6+ {[%clk 0:00:15]} 37. Ke2 {[%clk 0:00:36]}  Qg6 {[%clk 0:00:13]} 38. f3 {[%clk 0:00:35]}  Qf7 {[%clk 0:00:12]} 39. Rh1 {[%clk 0:00:30]}  Qa2+ {[%clk 0:00:12]} 40. Kf1 {[%clk 0:00:25]}  Bf6 {[%clk 0:00:10]} 41. Nf2 {[%clk 0:00:21]}  Qd2 {[%clk 0:00:08]} 42. Kg2 {[%clk 0:00:19]}  Bxd4 {[%clk 0:00:08]} 43. Rf1 {[%clk 0:00:17]}  Bxc5 {[%clk 0:00:08]} 44. Kg3 {[%clk 0:00:16]}  b4 {[%clk 0:00:07]} 45. Rc4 {[%clk 0:00:14]}  Bd6+ {[%clk 0:00:07]} 46. f4 {[%clk 0:00:12]}  b3 {[%clk 0:00:07]} 47. Ne4 {[%clk 0:00:12]}  Qd3+ {[%clk 0:00:06]} 48. Rf3 {[%clk 0:00:12]}  Qxc4 {[%clk 0:00:06]} 49. Nxd6 {[%clk 0:00:13]}  Qe2 {[%clk 0:00:06]} 50. Rxb3 {[%clk 0:00:12]}  Qd1 {[%clk 0:00:05]} 51. Ne4 {[%clk 0:00:10]}  Qxb3+ {[%clk 0:00:04]} 52. Kf2 {[%clk 0:00:08]}  Qa4 {[%clk 0:00:04]} 53. Nd6 {[%clk 0:00:08]}  Qxf4+ {[%clk 0:00:04]} 0-1


[Site "https://www.chess.com"]